[Event "*** Titled Tuesday Blitz"]
[Site "Chess.com"]
[Date "2020.05.12"]
[Round "8"]
[White "szefru"]
[Black "rakshi2005"]
[Result "1-0"]
[WhiteElo "2122"]
[BlackElo "2264"]
[TimeControl "180+1"]
[EndTime "11:30:18 PDT"]
[Termination "szefru won by resignation"]

1. e4 {[%clk 0:02:56.9]} 1... e5 {[%clk 0:02:59.4]} 2. Nf3 {[%clk 0:02:55.7]}
2... Nc6 {[%clk 0:02:59.5]} 3. Bb5 {[%clk 0:02:55]} 3... f5 {[%clk 0:02:58.9]}
4. d3 {[%clk 0:02:49.8]} 4... fxe4 {[%clk 0:02:58.4]} 5. dxe4 {[%clk 0:02:50.7]}
5... Nf6 {[%clk 0:02:58.6]} 6. Qe2 {[%clk 0:02:46]} 6... d6 {[%clk 0:02:56.4]}
7. O-O {[%clk 0:02:45.4]} 7... Qd7 {[%clk 0:02:55.7]} 8. Rd1 {[%clk 0:02:41.6]}
8... h6 {[%clk 0:02:54.9]} 9. Nxe5 {[%clk 0:02:35.1]} 9... Qe6 {[%clk 0:02:44]}
10. Nxc6 {[%clk 0:02:29.1]} 10... Bd7 {[%clk 0:02:30.1]} 11. Nd4 {[%clk
0:02:25.5]} 11... Bxb5 {[%clk 0:02:27.9]} 12. Qxb5+ {[%clk 0:02:23.9]} 12... Qd7
{[%clk 0:02:27.2]} 13. Qxb7 {[%clk 0:02:18.7]} 13... Rc8 {[%clk 0:02:22.8]} 14.
Qc6 {[%clk 0:02:17.1]} 14... Qxc6 {[%clk 0:02:17.7]} 15. Nxc6 {[%clk 0:02:18]}
15... Kd7 {[%clk 0:02:14.2]} 16. Nxa7 {[%clk 0:01:53.8]} 16... Rb8 {[%clk
0:02:11.7]} 17. a4 {[%clk 0:01:40.8]} 17... Rb7 {[%clk 0:02:10.6]} 18. Nb5
{[%clk 0:01:37.8]} 18... Nxe4 {[%clk 0:02:04.3]} 19. N1c3 {[%clk 0:01:33.4]}
19... Nxc3 {[%clk 0:02:01.1]} 20. Nxc3 {[%clk 0:01:34.3]} 20... Be7 {[%clk
0:02:01.4]} 21. Nd5 {[%clk 0:01:22.7]} 21... c6 {[%clk 0:01:56.6]} 22. Nxe7
{[%clk 0:01:21.8]} 22... Kxe7 {[%clk 0:01:57.5]} 23. b3 {[%clk 0:01:22.4]} 23...
d5 {[%clk 0:01:56.3]} 24. Ba3+ {[%clk 0:01:22.1]} 24... Kd7 {[%clk 0:01:56.1]}
25. Re1 {[%clk 0:01:22.6]} 25... Rbb8 {[%clk 0:01:55.6]} 26. Re7+ {[%clk
0:01:22.2]} 26... Kd8 {[%clk 0:01:55.8]} 27. Rxg7 {[%clk 0:01:20.8]} 27... Re8
{[%clk 0:01:48.8]} 28. g3 {[%clk 0:01:20.8]} 28... c5 {[%clk 0:01:35.7]} 29.
Bxc5 {[%clk 0:01:17.9]} 29... Rc8 {[%clk 0:01:35.5]} 30. Bb6+ {[%clk 0:01:17.2]}
1-0

[Event "*** Titled Tuesday Blitz"]
[Site "Chess.com"]
[Date "2020.05.12"]
[Round "8"]
[White "chenxiaoyuer"]
[Black "OMGCovid-19"]
[Result "1-0"]
[WhiteElo "2229"]
[BlackElo "1929"]
[TimeControl "180+1"]
[EndTime "11:30:19 PDT"]
[Termination "chenxiaoyuer won by resignation"]

1. e4 {[%clk 0:02:59.4]} 1... e6 {[%clk 0:03:00]} 2. d4 {[%clk 0:02:56.3]} 2...
d5 {[%clk 0:03:00.4]} 3. Nd2 {[%clk 0:02:56.1]} 3... Nf6 {[%clk 0:03:00]} 4. e5
{[%clk 0:02:56.2]} 4... Nfd7 {[%clk 0:03:00.5]} 5. Bd3 {[%clk 0:02:56.7]} 5...
c5 {[%clk 0:03:01]} 6. c3 {[%clk 0:02:56.7]} 6... Nc6 {[%clk 0:03:01.4]} 7. Ngf3
{[%clk 0:02:56.9]} 7... cxd4 {[%clk 0:02:59.3]} 8. cxd4 {[%clk 0:02:56.5]} 8...
f6 {[%clk 0:02:59]} 9. exf6 {[%clk 0:02:55.6]} 9... Nxf6 {[%clk 0:02:58.4]} 10.
O-O {[%clk 0:02:55.3]} 10... Bd6 {[%clk 0:02:58.6]} 11. b3 {[%clk 0:02:54.8]}
11... O-O {[%clk 0:02:57.9]} 12. Bb2 {[%clk 0:02:54.9]} 12... Qc7 {[%clk
0:02:55.7]} 13. Rc1 {[%clk 0:02:53.8]} 13... Bd7 {[%clk 0:02:54.3]} 14. Ne5
{[%clk 0:02:53.8]} 14... Rae8 {[%clk 0:02:50.1]} 15. Ndf3 {[%clk 0:02:52]} 15...
Qb8 {[%clk 0:02:47.2]} 16. h3 {[%clk 0:02:41.1]} 16... Nb4 {[%clk 0:01:59.1]}
17. Bb1 {[%clk 0:02:34.4]} 17... Bb5 {[%clk 0:01:58.3]} 18. Re1 {[%clk
0:02:29.6]} 18... Nc6 {[%clk 0:01:57.9]} 19. a4 {[%clk 0:02:19.3]} 19... Ba6
{[%clk 0:01:57.2]} 20. Nxc6 {[%clk 0:02:12.3]} 20... bxc6 {[%clk 0:01:56.5]} 21.
Rxc6 {[%clk 0:02:12]} 21... Bb7 {[%clk 0:01:49.9]} 22. Rc1 {[%clk 0:02:10.8]}
22... Bb4 {[%clk 0:01:48.6]} 23. Bc3 {[%clk 0:02:09.3]} 23... Ba6 {[%clk
0:01:44.6]} 24. Ne5 {[%clk 0:02:04.1]} 24... Bxc3 {[%clk 0:01:37]} 25. Rxc3
{[%clk 0:02:03.6]} 25... Rc8 {[%clk 0:01:35.7]} 26. Ree3 {[%clk 0:01:59.4]}
26... Qd6 {[%clk 0:01:32.7]} 27. Qd2 {[%clk 0:01:55.8]} 27... Nd7 {[%clk
0:01:16.8]} 28. Qc2 {[%clk 0:01:47]} 28... Nxe5 {[%clk 0:01:14.6]} 29. dxe5
{[%clk 0:01:42.8]} 29... Qb6 {[%clk 0:01:10]} 30. Qxh7+ {[%clk 0:01:40.6]} 30...
Kf7 {[%clk 0:01:08.7]} 31. Bg6+ {[%clk 0:01:40.4]} 31... Ke7 {[%clk 0:01:08.4]}
32. Qxg7+ {[%clk 0:01:39]} 1-0

[Event "*** Titled Tuesday Blitz"]
[Site "Chess.com"]
[Date "2020.05.12"]
[Round "8"]
[White "profofchess"]
[Black "HrvojeZagreb"]
[Result "1-0"]
[WhiteElo "2428"]
[BlackElo "2195"]
[TimeControl "180+1"]
[EndTime "11:30:21 PDT"]
[Termination "profofchess won by resignation"]

1. e4 {[%clk 0:03:00.9]} 1... e6 {[%clk 0:02:59.8]} 2. d4 {[%clk 0:03:00.2]}
2... d5 {[%clk 0:02:59.9]} 3. Nc3 {[%clk 0:03:00.3]} 3... dxe4 {[%clk
0:03:00.2]} 4. Nxe4 {[%clk 0:02:59.9]} 4... Nd7 {[%clk 0:03:00.8]} 5. Nf3 {[%clk
0:02:54.7]} 5... Ngf6 {[%clk 0:03:00.9]} 6. Nxf6+ {[%clk 0:02:54.9]} 6... Nxf6
{[%clk 0:03:01.8]} 7. c3 {[%clk 0:02:55.4]} 7... Be7 {[%clk 0:02:47.9]} 8. Bd3
{[%clk 0:02:52.4]} 8... O-O {[%clk 0:02:45.5]} 9. Qc2 {[%clk 0:02:50.9]} 9... b6
{[%clk 0:02:43.6]} 10. Bg5 {[%clk 0:02:47.1]} 10... h6 {[%clk 0:02:42.4]} 11. h4
{[%clk 0:02:46.3]} 11... Bb7 {[%clk 0:02:39.7]} 12. O-O-O {[%clk 0:02:45.5]}
12... a5 {[%clk 0:02:30.8]} 13. Kb1 {[%clk 0:02:44.3]} 13... a4 {[%clk
0:02:30.6]} 14. Rh3 {[%clk 0:02:39.7]} 14... a3 {[%clk 0:02:23.2]} 15. b3 {[%clk
0:02:33.2]} 15... Nd5 {[%clk 0:02:23]} 16. Bxh6 {[%clk 0:02:23.7]} 16... gxh6
{[%clk 0:02:19.5]} 17. Rg3+ {[%clk 0:02:23.1]} 17... Kh8 {[%clk 0:02:17.9]} 18.
Qd2 {[%clk 0:02:20.2]} 18... Nxc3+ {[%clk 0:01:59.1]} 19. Kc2 {[%clk 0:02:03.9]}
19... Bg5 {[%clk 0:01:58.3]} 20. Nxg5 {[%clk 0:01:46.9]} 20... hxg5 {[%clk
0:01:47.2]} 21. Rxg5 {[%clk 0:01:41.6]} 21... Qxd4 {[%clk 0:00:59]} 22. Rh5+
{[%clk 0:01:21.1]} 22... Kg8 {[%clk 0:00:56.7]} 23. Bh7+ {[%clk 0:01:19.7]} 1-0

[Event "*** Titled Tuesday Blitz"]
[Site "Chess.com"]
[Date "2020.05.12"]
[Round "8"]
[White "CyberneticLion"]
[Black "Logman74"]
[Result "1-0"]
[WhiteElo "2538"]
[BlackElo "2371"]
[TimeControl "180+1"]
[EndTime "11:30:27 PDT"]
[Termination "CyberneticLion won by resignation"]

1. e4 {[%clk 0:02:55.1]} 1... c5 {[%clk 0:02:59]} 2. c3 {[%clk 0:02:54.9]} 2...
d5 {[%clk 0:02:58.7]} 3. exd5 {[%clk 0:02:55.8]} 3... Qxd5 {[%clk 0:02:58.5]} 4.
d4 {[%clk 0:02:56.2]} 4... Nf6 {[%clk 0:02:58.1]} 5. Nf3 {[%clk 0:02:56]} 5...
e6 {[%clk 0:02:58.1]} 6. Be2 {[%clk 0:02:56.4]} 6... Nc6 {[%clk 0:02:56.5]} 7.
Na3 {[%clk 0:02:55.6]} 7... cxd4 {[%clk 0:02:52.8]} 8. Nb5 {[%clk 0:02:55.4]}
8... Qd8 {[%clk 0:02:52.5]} 9. Nbxd4 {[%clk 0:02:51.5]} 9... Nxd4 {[%clk
0:02:51.4]} 10. Qxd4 {[%clk 0:02:49.4]} 10... Qxd4 {[%clk 0:02:49.8]} 11. Nxd4
{[%clk 0:02:50.3]} 11... a6 {[%clk 0:02:49.8]} 12. Bg5 {[%clk 0:02:44.6]} 12...
Bc5 {[%clk 0:02:47.6]} 13. Nb3 {[%clk 0:02:37.1]} 13... Bb6 {[%clk 0:02:41.7]}
14. Bf3 {[%clk 0:02:31.3]} 14... h6 {[%clk 0:02:38.5]} 15. Be3 {[%clk
0:02:23.8]} 15... Bxe3 {[%clk 0:02:36.5]} 16. fxe3 {[%clk 0:02:24.7]} 16... Rb8
{[%clk 0:02:33.2]} 17. Ke2 {[%clk 0:02:21.9]} 17... Bd7 {[%clk 0:02:31.2]} 18.
Nc5 {[%clk 0:02:20.1]} 18... Bb5+ {[%clk 0:02:29.5]} 19. Kf2 {[%clk 0:02:19]}
19... b6 {[%clk 0:02:29.1]} 20. a4 {[%clk 0:01:47.7]} 20... bxc5 {[%clk
0:02:27.2]} 21. axb5 {[%clk 0:01:48]} 21... axb5 {[%clk 0:02:27.2]} 22. Bc6+
{[%clk 0:01:48.4]} 22... Ke7 {[%clk 0:02:25.2]} 23. Ra7+ {[%clk 0:01:47.7]}
23... Kd6 {[%clk 0:02:24.8]} 24. Bf3 {[%clk 0:01:42.2]} 24... Rhf8 {[%clk
0:02:23.5]} 25. Rd1+ {[%clk 0:01:27.4]} 25... Ke5 {[%clk 0:02:23.2]} 26. Ke2
{[%clk 0:01:26.7]} 26... b4 {[%clk 0:02:16.7]} 27. Ra5 {[%clk 0:01:20.6]} 27...
Rfc8 {[%clk 0:02:08.9]} 28. c4 {[%clk 0:01:13.1]} 28... Rd8 {[%clk 0:02:04.5]}
29. Rxc5+ {[%clk 0:01:12.8]} 1-0

[Event "*** Titled Tuesday Blitz"]
[Site "Chess.com"]
[Date "2020.05.12"]
[Round "8"]
[White "Sanyura"]
[Black "queen_iryna"]
[Result "1-0"]
[WhiteElo "2493"]
[BlackElo "2316"]
[TimeControl "180+1"]
[EndTime "11:30:33 PDT"]
[Termination "Sanyura won by resignation"]

1. e4 {[%clk 0:02:56.7]} 1... d6 {[%clk 0:03:00.1]} 2. d4 {[%clk 0:02:55.8]}
2... Nf6 {[%clk 0:03:00.7]} 3. Bd3 {[%clk 0:02:54.9]} 3... e5 {[%clk 0:02:59.8]}
4. Nf3 {[%clk 0:02:51.6]} 4... Nbd7 {[%clk 0:02:58.3]} 5. O-O {[%clk 0:02:50]}
5... Be7 {[%clk 0:02:57.8]} 6. c3 {[%clk 0:02:49.5]} 6... O-O {[%clk 0:02:56.5]}
7. h3 {[%clk 0:02:47.3]} 7... Re8 {[%clk 0:02:51.2]} 8. Re1 {[%clk 0:02:47.3]}
8... c6 {[%clk 0:02:50.8]} 9. a4 {[%clk 0:02:45.4]} 9... Bf8 {[%clk 0:02:42.8]}
10. Nbd2 {[%clk 0:02:44.6]} 10... Nh5 {[%clk 0:01:40.7]} 11. Nf1 {[%clk
0:02:41]} 11... Nf4 {[%clk 0:01:38.6]} 12. Bxf4 {[%clk 0:02:40.2]} 12... exf4
{[%clk 0:01:39.5]} 13. Qd2 {[%clk 0:02:39.9]} 13... Qf6 {[%clk 0:01:36.6]} 14.
N1h2 {[%clk 0:02:38.7]} 14... h5 {[%clk 0:01:28.1]} 15. a5 {[%clk 0:02:30.9]}
15... g5 {[%clk 0:01:24.3]} 16. Re2 {[%clk 0:02:16]} 16... Qg7 {[%clk
0:01:24.2]} 17. Rae1 {[%clk 0:02:01.6]} 17... Nf6 {[%clk 0:01:16]} 18. e5 {[%clk
0:02:00.1]} 18... Nd5 {[%clk 0:01:14.9]} 19. exd6 {[%clk 0:01:57.5]} 19... Be6
{[%clk 0:01:11.9]} 20. Re5 {[%clk 0:01:56.3]} 20... Bc8 {[%clk 0:01:12.8]} 21.
Rxe8 {[%clk 0:01:54.5]} 21... g4 {[%clk 0:01:01.5]} 22. Nh4 {[%clk 0:01:41.5]}
22... gxh3 {[%clk 0:01:00.1]} 23. d7 {[%clk 0:01:39.8]} 23... Bxd7 {[%clk
0:00:41.4]} 24. Rxa8 {[%clk 0:01:40.7]} 24... Qg5 {[%clk 0:00:41.5]} 25. N2f3
{[%clk 0:01:30.3]} 1-0

[Event "*** Titled Tuesday Blitz"]
[Site "Chess.com"]
[Date "2020.05.12"]
[Round "8"]
[White "2165149677570"]
[Black "WiktoriaPOL"]
[Result "1-0"]
[WhiteElo "2229"]
[BlackElo "1997"]
[TimeControl "180+1"]
[EndTime "11:30:35 PDT"]
[Termination "2165149677570 won by resignation"]

1. a3 {[%clk 0:03:00.9]} 1... d5 {[%clk 0:02:57.1]} 2. Nf3 {[%clk 0:02:55.2]}
2... c5 {[%clk 0:02:55.6]} 3. b3 {[%clk 0:02:51.5]} 3... Nc6 {[%clk 0:02:53.6]}
4. Bb2 {[%clk 0:02:50.3]} 4... Nf6 {[%clk 0:02:53.4]} 5. d4 {[%clk 0:02:50.3]}
5... e6 {[%clk 0:02:50.3]} 6. g3 {[%clk 0:02:48.9]} 6... b6 {[%clk 0:02:47.3]}
7. Bg2 {[%clk 0:02:48.5]} 7... Bb7 {[%clk 0:02:45.8]} 8. O-O {[%clk 0:02:47.8]}
8... Rc8 {[%clk 0:02:43.6]} 9. c4 {[%clk 0:02:42.8]} 9... Ba6 {[%clk 0:02:40.3]}
10. Ne5 {[%clk 0:02:36.7]} 10... cxd4 {[%clk 0:02:30.3]} 11. Nxc6 {[%clk
0:02:27.7]} 11... Rxc6 {[%clk 0:02:29.5]} 12. cxd5 {[%clk 0:02:28.6]} 12... Nxd5
{[%clk 0:02:06.8]} 13. Qxd4 {[%clk 0:02:24.2]} 13... Rc8 {[%clk 0:01:27.8]} 14.
Qa4+ {[%clk 0:02:18.9]} 14... Qd7 {[%clk 0:01:21.1]} 15. Qxa6 {[%clk 0:02:18.6]}
15... Rc2 {[%clk 0:01:16.1]} 16. Bd4 {[%clk 0:01:53.4]} 16... Bd6 {[%clk
0:00:42.1]} 17. Qd3 {[%clk 0:01:42.2]} 17... Rc8 {[%clk 0:00:38.1]} 18. Bxd5
{[%clk 0:01:40.1]} 18... exd5 {[%clk 0:00:37.2]} 19. Bxg7 {[%clk 0:01:41]} 19...
Rg8 {[%clk 0:00:33.1]} 20. Qe3+ {[%clk 0:01:39.7]} 20... Be7 {[%clk 0:00:30.7]}
21. Bf6 {[%clk 0:01:40.1]} 21... Qe6 {[%clk 0:00:27.5]} 22. Qxe6 {[%clk
0:01:39.8]} 22... fxe6 {[%clk 0:00:26.6]} 23. Bxe7 {[%clk 0:01:40.7]} 23... Kxe7
{[%clk 0:00:26.5]} 24. Ra2 {[%clk 0:01:41.6]} 1-0

[Event "*** Titled Tuesday Blitz"]
[Site "Chess.com"]
[Date "2020.05.12"]
[Round "8"]
[White "ural58"]
[Black "KaterynaLagno"]
[Result "0-1"]
[WhiteElo "2495"]
[BlackElo "2696"]
[TimeControl "180+1"]
[EndTime "11:30:36 PDT"]
[Termination "KaterynaLagno won by resignation"]

1. e4 {[%clk 0:02:56.2]} 1... e5 {[%clk 0:02:59.5]} 2. f4 {[%clk 0:02:55.6]}
2... exf4 {[%clk 0:02:57.4]} 3. Bc4 {[%clk 0:02:55.5]} 3... Ne7 {[%clk
0:02:52.1]} 4. Nc3 {[%clk 0:02:53.3]} 4... c6 {[%clk 0:02:49]} 5. Bb3 {[%clk
0:02:47.3]} 5... d5 {[%clk 0:02:47.5]} 6. exd5 {[%clk 0:02:45.5]} 6... cxd5
{[%clk 0:02:44.1]} 7. d4 {[%clk 0:02:42.8]} 7... Be6 {[%clk 0:02:37.5]} 8. Bxf4
{[%clk 0:02:41]} 8... Ng6 {[%clk 0:02:38.2]} 9. Bxb8 {[%clk 0:02:31.1]} 9...
Rxb8 {[%clk 0:02:37.5]} 10. Nf3 {[%clk 0:02:30.7]} 10... Bb4 {[%clk 0:02:30.8]}
11. Ba4+ {[%clk 0:02:30.5]} 11... b5 {[%clk 0:02:29.8]} 12. Bb3 {[%clk
0:02:27.3]} 12... O-O {[%clk 0:02:24.5]} 13. O-O {[%clk 0:02:27.4]} 13... Bxc3
{[%clk 0:02:24.4]} 14. bxc3 {[%clk 0:02:27.2]} 14... h6 {[%clk 0:02:21.9]} 15.
a4 {[%clk 0:02:26.5]} 15... a6 {[%clk 0:02:21.8]} 16. axb5 {[%clk 0:02:26.5]}
16... axb5 {[%clk 0:02:22.7]} 17. Ra7 {[%clk 0:02:13.6]} 17... Qb6 {[%clk
0:02:19.6]} 18. Qa1 {[%clk 0:02:13.2]} 18... Qc6 {[%clk 0:02:17.4]} 19. Ra6
{[%clk 0:02:09.2]} 19... Rb6 {[%clk 0:02:14.1]} 20. Rxb6 {[%clk 0:02:08.3]}
20... Qxb6 {[%clk 0:02:15]} 21. Qa2 {[%clk 0:01:59.4]} 21... Qc6 {[%clk
0:02:14.8]} 22. h3 {[%clk 0:01:50.7]} 22... Ra8 {[%clk 0:02:10.8]} 23. Qb2
{[%clk 0:01:49.1]} 23... Rc8 {[%clk 0:02:10.7]} 24. Ra1 {[%clk 0:01:35.9]} 24...
Qd6 {[%clk 0:02:03.5]} 25. Re1 {[%clk 0:01:02.5]} 25... Qg3 {[%clk 0:01:59.9]}
26. Re2 {[%clk 0:00:47.7]} 26... Nf4 {[%clk 0:01:57.6]} 27. Rd2 {[%clk
0:00:47.7]} 27... Bxh3 {[%clk 0:01:54]} 28. Bxd5 {[%clk 0:00:42.9]} 28... Bxg2
{[%clk 0:01:48.9]} 0-1

[Event "*** Titled Tuesday Blitz"]
[Site "Chess.com"]
[Date "2020.05.12"]
[Round "8"]
[White "Malysch"]
[Black "stanyga"]
[Result "0-1"]
[WhiteElo "2453"]
[BlackElo "2641"]
[TimeControl "180+1"]
[EndTime "11:30:40 PDT"]
[Termination "stanyga won by resignation"]

1. d4 {[%clk 0:03:00.9]} 1... d5 {[%clk 0:02:58.6]} 2. c4 {[%clk 0:03:00.7]}
2... c6 {[%clk 0:02:57.7]} 3. Nf3 {[%clk 0:03:00.7]} 3... Nf6 {[%clk 0:02:57.5]}
4. Qc2 {[%clk 0:03:00.8]} 4... e6 {[%clk 0:02:55.9]} 5. g3 {[%clk 0:03:00.1]}
5... dxc4 {[%clk 0:02:54]} 6. Qxc4 {[%clk 0:02:57.7]} 6... b5 {[%clk 0:02:54]}
7. Qd3 {[%clk 0:02:57.1]} 7... Bb7 {[%clk 0:02:49.7]} 8. Bg2 {[%clk 0:02:57.2]}
8... a6 {[%clk 0:02:48.4]} 9. a4 {[%clk 0:02:56.1]} 9... Qb6 {[%clk 0:02:39.8]}
10. Nc3 {[%clk 0:02:51.2]} 10... Nbd7 {[%clk 0:02:35.1]} 11. O-O {[%clk
0:02:40.5]} 11... Be7 {[%clk 0:02:25.5]} 12. Nd2 {[%clk 0:02:32.3]} 12... Rd8
{[%clk 0:02:15.9]} 13. Nb3 {[%clk 0:02:30.5]} 13... Ne5 {[%clk 0:02:05.8]} 14.
Qc2 {[%clk 0:02:11.8]} 14... Nc4 {[%clk 0:02:04.9]} 15. Rd1 {[%clk 0:01:55.5]}
15... O-O {[%clk 0:02:03.4]} 16. Bg5 {[%clk 0:01:49.1]} 16... e5 {[%clk
0:01:56]} 17. dxe5 {[%clk 0:01:32.9]} 17... Ng4 {[%clk 0:01:55.1]} 18. Bxe7
{[%clk 0:00:32.7]} 18... Qxf2+ {[%clk 0:01:54]} 19. Kh1 {[%clk 0:00:33]} 19...
Nce3 {[%clk 0:01:53.9]} 20. Qe4 {[%clk 0:00:25.2]} 20... Nxd1 {[%clk 0:01:53.6]}
21. Bxd8 {[%clk 0:00:14.4]} 21... Qe1+ {[%clk 0:01:52.8]} 0-1

[Event "*** Titled Tuesday Blitz"]
[Site "Chess.com"]
[Date "2020.05.12"]
[Round "8"]
[White "NefeLV"]
[Black "Perecke"]
[Result "0-1"]
[WhiteElo "1804"]
[BlackElo "2204"]
[TimeControl "180+1"]
[EndTime "11:30:40 PDT"]
[Termination "Perecke won by checkmate"]

1. e4 {[%clk 0:02:55.5]} 1... c5 {[%clk 0:02:50.1]} 2. f4 {[%clk 0:02:54.3]}
2... d5 {[%clk 0:02:39.8]} 3. e5 {[%clk 0:02:53]} 3... Nc6 {[%clk 0:02:36.4]} 4.
Nf3 {[%clk 0:02:51.8]} 4... Bg4 {[%clk 0:02:31]} 5. Be2 {[%clk 0:02:51.1]} 5...
Qd7 {[%clk 0:02:28.3]} 6. O-O {[%clk 0:02:49.3]} 6... O-O-O {[%clk 0:02:26.1]}
7. d4 {[%clk 0:02:48.7]} 7... Bxf3 {[%clk 0:02:16.2]} 8. Bxf3 {[%clk 0:02:45.7]}
8... Nxd4 {[%clk 0:02:15.6]} 9. c3 {[%clk 0:02:45.9]} 9... Nxf3+ {[%clk
0:02:04.6]} 10. Qxf3 {[%clk 0:02:45.5]} 10... e6 {[%clk 0:02:00.2]} 11. Be3
{[%clk 0:02:43]} 11... Qc7 {[%clk 0:01:52.8]} 12. Nd2 {[%clk 0:02:38.6]} 12...
Ne7 {[%clk 0:01:44.9]} 13. b4 {[%clk 0:02:37.4]} 13... Nf5 {[%clk 0:01:43.3]}
14. Bf2 {[%clk 0:02:35.3]} 14... c4 {[%clk 0:01:37.8]} 15. a4 {[%clk 0:02:33.6]}
15... h5 {[%clk 0:01:33.1]} 16. a5 {[%clk 0:02:31.3]} 16... h4 {[%clk
0:01:24.2]} 17. Bxa7 {[%clk 0:02:28.7]} 17... Be7 {[%clk 0:01:18.9]} 18. Bb6
{[%clk 0:02:27.3]} 18... Qc6 {[%clk 0:01:18.9]} 19. Bxd8 {[%clk 0:02:11.7]}
19... Rxd8 {[%clk 0:01:13.3]} 20. b5 {[%clk 0:02:12.6]} 20... Bc5+ {[%clk
0:01:09.9]} 21. Kh1 {[%clk 0:02:11.8]} 21... Qc7 {[%clk 0:00:58.1]} 22. b6
{[%clk 0:02:06.8]} 22... Qc6 {[%clk 0:00:49]} 23. Rfb1 {[%clk 0:02:05.5]} 23...
Rh8 {[%clk 0:00:47.6]} 24. a6 {[%clk 0:02:04.1]} 24... Ng3+ {[%clk 0:00:47.2]}
25. Qxg3 {[%clk 0:01:59.6]} 25... hxg3 {[%clk 0:00:48.1]} 26. h3 {[%clk
0:01:52]} 26... d4 {[%clk 0:00:38.4]} 27. a7 {[%clk 0:01:48.8]} 27... Rxh3+
{[%clk 0:00:37.9]} 28. Kg1 {[%clk 0:01:38.7]} 28... d3+ {[%clk 0:00:37.4]} 29.
Kf1 {[%clk 0:01:38.3]} 29... Rh1# {[%clk 0:00:37.3]} 0-1

[Event "*** Titled Tuesday Blitz"]
[Site "Chess.com"]
[Date "2020.05.12"]
[Round "8"]
[White "kinga2008"]
[Black "Matalon"]
[Result "0-1"]
[WhiteElo "2214"]
[BlackElo "2349"]
[TimeControl "180+1"]
[EndTime "11:30:41 PDT"]
[Termination "Matalon won by checkmate"]

1. e4 {[%clk 0:03:00.9]} 1... c5 {[%clk 0:02:59.1]} 2. Nf3 {[%clk 0:03:00.7]}
2... d6 {[%clk 0:02:58.9]} 3. c3 {[%clk 0:03:00]} 3... Nf6 {[%clk 0:02:57.6]} 4.
Bd3 {[%clk 0:03:00.3]} 4... Nc6 {[%clk 0:02:56.5]} 5. Bc2 {[%clk 0:03:00.3]}
5... e5 {[%clk 0:02:57.2]} 6. O-O {[%clk 0:02:59.1]} 6... d5 {[%clk 0:02:57.7]}
7. exd5 {[%clk 0:02:55.4]} 7... Qxd5 {[%clk 0:02:56.6]} 8. Re1 {[%clk
0:02:53.8]} 8... Bg4 {[%clk 0:02:49.8]} 9. d3 {[%clk 0:02:45.1]} 9... Bxf3
{[%clk 0:02:33.8]} 10. Qxf3 {[%clk 0:02:40.1]} 10... Qxf3 {[%clk 0:02:32.9]} 11.
gxf3 {[%clk 0:02:41]} 11... Bd6 {[%clk 0:02:21.1]} 12. f4 {[%clk 0:02:39]} 12...
O-O {[%clk 0:02:16]} 13. fxe5 {[%clk 0:02:37.1]} 13... Nxe5 {[%clk 0:02:15.9]}
14. Nd2 {[%clk 0:02:34]} 14... Rfe8 {[%clk 0:02:13.9]} 15. Kg2 {[%clk
0:02:32.7]} 15... Ng6 {[%clk 0:01:34.9]} 16. Ne4 {[%clk 0:02:27.7]} 16... Nxe4
{[%clk 0:01:23.2]} 17. dxe4 {[%clk 0:02:25.7]} 17... Nh4+ {[%clk 0:01:05.1]} 18.
Kh3 {[%clk 0:02:17.9]} 18... Nf3 {[%clk 0:00:59.9]} 19. Rh1 {[%clk 0:02:13.1]}
19... Rad8 {[%clk 0:00:40.6]} 20. Be3 {[%clk 0:02:10.5]} 20... b6 {[%clk
0:00:39.4]} 21. Rad1 {[%clk 0:02:07.2]} 21... Be5 {[%clk 0:00:35.9]} 22. Kg4
{[%clk 0:01:47.8]} 22... Nxh2+ {[%clk 0:00:31.5]} 23. Kf5 {[%clk 0:01:45.2]}
23... g6+ {[%clk 0:00:29.9]} 24. Kg5 {[%clk 0:01:40.2]} 24... Kg7 {[%clk
0:00:29.1]} 25. f4 {[%clk 0:01:35.3]} 25... Bf6# {[%clk 0:00:24]} 0-1

[Event "*** Titled Tuesday Blitz"]
[Site "Chess.com"]
[Date "2020.05.12"]
[Round "8"]
[White "Juanovic"]
[Black "wanyaland"]
[Result "0-1"]
[WhiteElo "2179"]
[BlackElo "2317"]
[TimeControl "180+1"]
[EndTime "11:30:44 PDT"]
[Termination "wanyaland won by resignation"]

1. e4 {[%clk 0:03:00.9]} 1... c5 {[%clk 0:02:59.7]} 2. Nf3 {[%clk 0:03:00.5]}
2... d6 {[%clk 0:02:59.5]} 3. Bb5+ {[%clk 0:03:00.2]} 3... Bd7 {[%clk
0:02:58.8]} 4. Bxd7+ {[%clk 0:03:00.3]} 4... Qxd7 {[%clk 0:02:59.7]} 5. Nc3
{[%clk 0:03:00.8]} 5... g6 {[%clk 0:02:59.3]} 6. d3 {[%clk 0:03:00.4]} 6... Bg7
{[%clk 0:02:58.8]} 7. O-O {[%clk 0:03:00.8]} 7... Nc6 {[%clk 0:02:59]} 8. h3
{[%clk 0:03:00.3]} 8... Nf6 {[%clk 0:02:58.2]} 9. Re1 {[%clk 0:03:00.8]} 9... e5
{[%clk 0:02:56.9]} 10. Bg5 {[%clk 0:02:59.9]} 10... h6 {[%clk 0:02:57.2]} 11.
Bxf6 {[%clk 0:02:59.9]} 11... Bxf6 {[%clk 0:02:58.1]} 12. Nd5 {[%clk 0:03:00.5]}
12... Bd8 {[%clk 0:02:58.6]} 13. Nd2 {[%clk 0:03:00.6]} 13... f5 {[%clk
0:02:55.6]} 14. a4 {[%clk 0:03:00.2]} 14... O-O {[%clk 0:02:54.4]} 15. Nc4
{[%clk 0:02:58.3]} 15... Qe6 {[%clk 0:02:46]} 16. a5 {[%clk 0:02:57.9]} 16... a6
{[%clk 0:02:42.6]} 17. Ncb6 {[%clk 0:02:56.7]} 17... Rb8 {[%clk 0:02:39.6]} 18.
c3 {[%clk 0:02:56.2]} 18... Kh7 {[%clk 0:02:38.9]} 19. f3 {[%clk 0:02:54.9]}
19... Bh4 {[%clk 0:02:36.1]} 20. Rf1 {[%clk 0:02:53.8]} 20... Rf7 {[%clk
0:02:35.6]} 21. f4 {[%clk 0:02:09.2]} 21... fxe4 {[%clk 0:02:27.3]} 22. dxe4
{[%clk 0:02:04.9]} 22... Rbf8 {[%clk 0:02:24.6]} 23. Qg4 {[%clk 0:01:52.3]}
23... Qxg4 {[%clk 0:02:20.2]} 24. hxg4 {[%clk 0:01:53.2]} 24... exf4 {[%clk
0:02:20.7]} 25. Nc4 {[%clk 0:01:45.4]} 25... Ne5 {[%clk 0:02:10.1]} 26. Nxd6
{[%clk 0:01:43.3]} 26... Rd7 {[%clk 0:02:10.1]} 27. Nxf4 {[%clk 0:01:23.9]}
27... Rxd6 {[%clk 0:02:08.3]} 28. Nd5 {[%clk 0:01:23]} 28... Rdd8 {[%clk
0:02:02.4]} 29. Rad1 {[%clk 0:01:16.3]} 29... Nxg4 {[%clk 0:02:01]} 30. Rf3
{[%clk 0:01:08.9]} 30... Kg7 {[%clk 0:01:57.1]} 31. Rdf1 {[%clk 0:01:02.9]}
31... Ne5 {[%clk 0:01:54.9]} 32. Rxf8 {[%clk 0:01:01.4]} 32... Rxf8 {[%clk
0:01:55.8]} 33. Rxf8 {[%clk 0:01:01.3]} 33... Kxf8 {[%clk 0:01:55.8]} 34. b3
{[%clk 0:00:49.7]} 34... Nc6 {[%clk 0:01:53.7]} 0-1